fUSD/lending_fUSD_20250814
["ID","MTS","AMOUNT","RATE_DAILY","PERIOD"]
[379224949,1755197445470,-151.0,0.00027397,7]
[379224951,1755197445481,-151.0,0.00027397,7]
[379224953,1755197445491,-400.0,0.00027397,2]
[379224956,1755197445501,-400.0,0.00027397,2]
[379224958,1755197445512,-400.0,0.00027397,2]
[379224960,1755197445523,-546.29,0.00027397,2]
[379224962,1755197445535,-435.180572,0.00027397,7]
[379224964,1755197445545,-435.180572,0.00027397,7]
[379224966,1755197445556,-400.0,0.00027397,2]
[379224968,1755197445566,-435.180572,0.00027397,7]
[379224970,1755197445577,-400.0,0.00027397,2]
[379224972,1755197445591,-435.180572,0.00027397,7]
[379224975,1755197445601,-400.0,0.00027397,2]
[379224977,1755197445615,-390.6313689,0.00027397,2]
[379224979,1755197445626,-400.0,0.00027397,2]
[379224981,1755197445636,-944.9,0.00027397,2]
[379224983,1755197445647,-152.414802,0.00027397,7]
[379224985,1755197445661,-688.73,0.00027397,2]
[379224987,1755197445672,-152.414802,0.00027397,7]
[379224989,1755197445682,-1851.382945,0.00027397,7]
[379224991,1755197445693,-1851.382945,0.00027397,7]
[379224993,1755197445703,-152.414802,0.00027397,7]
[379224996,1755197445713,-152.414802,0.00027397,7]
[379224998,1755197445723,-1851.382945,0.00027397,7]
[379225000,1755197445734,-1851.382945,0.00027397,7]
[379225002,1755197445744,-1355.47,0.00027397,2]
[379225004,1755197445754,-400.0,0.00027397,2]
[379225006,1755197445765,-400.0,0.00027397,2]
[379225008,1755197445775,-940.58,0.00027397,2]
[379225010,1755197445786,-400.0,0.00027397,2]
[379225012,1755197445797,-400.0,0.00027397,2]
[379225015,1755197445807,-501.203907,0.00027397,7]
[379225017,1755197445818,-2141.48,0.00027397,2]
[379225019,1755197445828,-400.0,0.00027397,2]
[379225021,1755197445840,-1679.138121,0.00027397,7]
[379225023,1755197445851,-1679.138121,0.00027397,7]
[379225072,1755197446250,-400.0,0.00027397,2]
[379225075,1755197446271,-501.203907,0.00027397,7]
[379225077,1755197446282,-1679.138121,0.00027397,7]
[379225079,1755197446291,-1679.138121,0.00027397,7]
[379225081,1755197446301,-3837.091463,0.00027397,7]
[379225084,1755197446311,-3837.091463,0.00027397,7]
[379225086,1755197446320,-402.8,0.00027397,2]
[379225088,1755197446329,-3837.091463,0.00027397,7]
[379225090,1755197446338,-3837.091463,0.00027397,7]
[379225092,1755197446349,-400.0,0.00027397,2]
[379225094,1755197446358,-400.0,0.00027397,2]
[379225096,1755197446367,-400.0,0.00027397,2]
[379225098,1755197446377,-400.0,0.00027397,2]
[379225100,1755197446387,-500.0,0.00027397,2]
[379225102,1755197446396,-216.99248073,0.00027397,2]
[379225104,1755197446406,-400.0,0.00027397,2]
[379225106,1755197446416,-400.0,0.00027397,2]
[379225108,1755197446426,-200.0,0.00027397,2]
[379225110,1755197446435,-400.0,0.00027397,2]
[379225112,1755197446445,-445.133288,0.00027397,7]
[379225114,1755197446454,-445.133288,0.00027397,7]
[379225116,1755197446464,-1905.96,0.00027397,2]
[379225118,1755197446473,-445.133288,0.00027397,7]
[379225120,1755197446483,-400.0,0.00027397,2]
[379225122,1755197446492,-445.133288,0.00027397,7]
[379225124,1755197446502,-400.0,0.00027397,2]
[379225126,1755197446511,-400.0,0.00027397,2]
[379225128,1755197446521,-400.0,0.00027397,2]
[379225130,1755197446533,-400.0,0.00027397,2]
[379225132,1755197446542,-400.0,0.00027397,2]
[379225134,1755197446552,-400.0,0.00027397,2]
[379225136,1755197446561,-400.0,0.00027397,2]
[379225138,1755197446571,-498.21,0.00027397,2]
[379225140,1755197446585,-400.0,0.00027397,2]
[379225142,1755197446595,-400.0,0.00027397,2]
[379225144,1755197446604,-400.0,0.00027397,2]
[379225146,1755197446614,-400.0,0.00027397,2]
[379225148,1755197446625,-939.89,0.00027397,2]
[379225151,1755197446635,-400.0,0.00027397,2]
[379225153,1755197446644,-291.16747412,0.00027397,2]
[379225155,1755197446654,-1000.0,0.00027397,2]
[379225157,1755197446666,-400.0,0.00027397,2]
[379225159,1755197446676,-400.0,0.00027397,2]
[379225161,1755197446685,-1129.12,0.00027397,2]
[379225163,1755197446694,-400.0,0.00027397,2]
[379225165,1755197446704,-400.0,0.00027397,2]
[379225167,1755197446713,-704.94,0.00027397,2]
[379225169,1755197446723,-906.82,0.00027397,2]
[379225171,1755197446732,-763.343777,0.00027397,7]
[379225174,1755197446741,-763.343777,0.00027397,7]
[379225176,1755197446751,-601.76,0.00027397,2]
[379225179,1755197446760,-763.343777,0.00027397,7]
[379225181,1755197446770,-400.0,0.00027397,2]
[379225183,1755197446780,-763.343777,0.00027397,7]
[379225185,1755197446789,-400.0,0.00027397,2]
[379225187,1755197446798,-400.0,0.00027397,2]
[379225189,1755197446808,-400.0,0.00027397,2]
[379225191,1755197446817,-400.0,0.00027397,2]
[379225193,1755197446826,-400.0,0.00027397,2]
[379225195,1755197446836,-424.05,0.00027397,2]
[379225197,1755197446845,-400.0,0.00027397,2]
[379225199,1755197446854,-400.0,0.00027397,2]
[379225201,1755197446864,-400.0,0.00027397,2]
[379225203,1755197446873,-1653.41,0.00027397,2]
[379225205,1755197446882,-1048.55,0.00027397,2]
[379225207,1755197446891,-510.83,0.00027397,2]
[379225209,1755197446901,-400.0,0.00027397,2]
[379225211,1755197446910,-508.09,0.00027397,2]
[379225213,1755197446920,-1269.18,0.00027397,2]
[379225215,1755197446928,-2000.0,0.00027397,30]
[379225217,1755197446938,-400.0,0.00027397,2]
[379225219,1755197446947,-1013.33,0.00027397,2]
[379225221,1755197446957,-400.0,0.00027397,2]
[379225223,1755197446966,-400.0,0.00027397,2]
[379225225,1755197446975,-400.0,0.00027397,2]
[379225227,1755197446985,-400.0,0.00027397,2]
[379225229,1755197446994,-400.0,0.00027397,2]
[379225231,1755197447004,-400.0,0.00027397,2]
[379225233,1755197447013,-704.61,0.00027397,2]
[379225235,1755197447023,-545.81,0.00027397,2]
[379225237,1755197447035,-697.84,0.00027397,2]
[379225239,1755197447044,-400.0,0.00027397,2]
[379225241,1755197447055,-400.0,0.00027397,2]
[379225243,1755197447064,-436.09,0.00027397,2]
[379225245,1755197447074,-400.0,0.00027397,2]
[379225247,1755197447083,-400.0,0.00027397,2]
[379225249,1755197447093,-400.0,0.00027397,2]
[379225251,1755197447103,-400.0,0.00027397,2]
[379225253,1755197447112,-400.0,0.00027397,2]
[379225255,1755197447122,-493.76,0.00027397,2]
[379225257,1755197447133,-729.26,0.00027397,2]
[379225259,1755197447142,-400.0,0.00027397,2]
[379225261,1755197447152,-400.0,0.00027397,2]
[379225264,1755197447162,-2758.1,0.00027397,2]
[379225266,1755197447172,-400.0,0.00027397,2]
[379225268,1755197447181,-1587.44,0.00027397,2]
[379225270,1755197447191,-2092.62,0.00027397,2]
[379225272,1755197447200,-400.0,0.00027397,2]
[379225274,1755197447209,-2155.39,0.00027397,2]
[379225276,1755197447219,-1106.31,0.00027397,2]
[379225278,1755197447229,-400.0,0.00027397,2]
[379225280,1755197447238,-400.0,0.00027397,2]
[379225282,1755197447247,-400.0,0.00027397,2]
[379225284,1755197447257,-539.23,0.00027397,2]
[379225286,1755197447267,-2260.06,0.00027397,2]
[379225288,1755197447276,-1383.82,0.00027397,2]
[379225290,1755197447287,-400.0,0.00027397,2]
[379225292,1755197447297,-400.0,0.00027397,2]
[379225294,1755197447307,-400.0,0.00027397,2]
[379225296,1755197447316,-400.0,0.00027397,2]
[379225298,1755197447326,-1225.43,0.00027397,2]
[379225300,1755197447335,-400.0,0.00027397,2]
[379225302,1755197447344,-400.0,0.00027397,2]
[379225304,1755197447354,-400.0,0.00027397,2]
[379225306,1755197447363,-546.4,0.00027397,2]
[379225308,1755197447372,-400.0,0.00027397,2]
[379225310,1755197447382,-1187.22,0.00027397,2]
[379225312,1755197447391,-2769.71,0.00027397,2]
[379225314,1755197447400,-400.0,0.00027397,2]
[379225316,1755197447410,-983.93,0.00027397,2]
[379225318,1755197447420,-452.09,0.00027397,2]
[379225320,1755197447429,-2688.380913,0.00027397,7]
[379225322,1755197447439,-400.0,0.00027397,2]
[379225324,1755197447448,-500.0,0.00027397,2]
[379225326,1755197447458,-792.19,0.00027397,2]
[379225328,1755197447467,-500.0,0.00027397,2]
[379225330,1755197447476,-792.19,0.00027397,2]
[379225332,1755197447486,-500.0,0.00027397,2]
[379225334,1755197447495,-792.19,0.00027397,2]
[379225336,1755197447505,-500.0,0.00027397,2]
[379225338,1755197447514,-792.19,0.00027397,2]
[379225340,1755197447523,-500.0,0.00027397,2]
[379225342,1755197447533,-792.19,0.00027397,2]
[379225344,1755197447543,-500.0,0.00027397,2]
[379225346,1755197447553,-792.19,0.00027397,2]
[379225348,1755197447564,-400.0,0.00027397,2]
[379225350,1755197447573,-792.19,0.00027397,2]
[379225352,1755197447584,-500.0,0.00027397,2]
[379225354,1755197447594,-792.19,0.00027397,2]
[379225356,1755197447603,-847.02,0.00027397,2]
[379225358,1755197447613,-400.0,0.00027397,2]
[379225360,1755197447623,-500.0,0.00027397,2]
[379225362,1755197447632,-792.19,0.00027397,2]
[379225364,1755197447643,-500.0,0.00027397,2]
[379225366,1755197447652,-792.19,0.00027397,2]
[379225368,1755197447664,-500.0,0.00027397,2]
[379225370,1755197447673,-2688.380913,0.00027397,7]
[379225372,1755197447683,-792.19,0.00027397,2]
[379225374,1755197447692,-500.0,0.00027397,2]
[379225376,1755197447701,-792.19,0.00027397,2]
[379225378,1755197447710,-500.0,0.00027397,2]
[379225380,1755197447720,-792.19,0.00027397,2]
[379225382,1755197447730,-500.0,0.00027397,2]
[379225384,1755197447739,-792.19,0.00027397,2]
[379225386,1755197447749,-792.19,0.00027397,2]
[379225388,1755197447758,-986.13,0.00027397,2]
[379225390,1755197447768,-792.19,0.00027397,2]
[379225392,1755197447777,-792.19,0.00027397,2]
[379225394,1755197447788,-792.19,0.00027397,2]
[379225397,1755197447798,-477.15,0.00027397,2]
[379225399,1755197447807,-792.19,0.00027397,2]
[379225401,1755197447816,-792.19,0.00027397,2]
[379225403,1755197447826,-792.19,0.00027397,2]
[379225405,1755197447835,-792.19,0.00027397,2]
[379225407,1755197447845,-792.19,0.00027397,2]
[379225409,1755197447854,-792.38400311,0.00027397,2]
[379225411,1755197447863,-400.0,0.00027397,2]
[379225413,1755197447872,-400.0,0.00027397,2]
[379225415,1755197447881,-695.6,0.00027397,2]
[379225417,1755197447890,-400.0,0.00027397,2]
[379225419,1755197447900,-400.0,0.00027397,2]
[379225421,1755197447909,-400.0,0.00027397,2]
[379225423,1755197447919,-462.23,0.00027397,2]
[379225425,1755197447928,-400.0,0.00027397,2]
[379225427,1755197447937,-905.28,0.00027397,2]
[379225429,1755197447946,-400.0,0.00027397,2]
[379225431,1755197447955,-1667.44,0.00027397,2]
[379225433,1755197447965,-577.88,0.00027397,2]
[379225435,1755197447974,-1070.99,0.00027397,2]
[379225437,1755197447984,-400.0,0.00027397,2]
[379225439,1755197447993,-400.0,0.00027397,2]
[379225441,1755197448003,-400.0,0.00027397,2]
[379225443,1755197448013,-400.0,0.00027397,2]
[379225445,1755197448022,-432.3,0.00027397,2]
[379225447,1755197448031,-1281.1,0.00027397,2]
[379225449,1755197448040,-1201.74,0.00027397,2]
[379225451,1755197448050,-401.20178277,0.00027397,2]
[379225453,1755197448059,-400.0,0.00027397,2]
[379225454,1755197448069,-1068.46,0.00027397,2]
[379225457,1755197448079,-400.0,0.00027397,2]
[379225459,1755197448088,-400.0,0.00027397,2]
[379225461,1755197448098,-520.23,0.00027397,2]
[379225463,1755197448107,-400.0,0.00027397,2]
[379225465,1755197448118,-150.0,0.00027397,2]
[379225466,1755197448128,-400.0,0.00027397,2]
[379225467,1755197448137,-400.0,0.00027397,2]
[379225468,1755197448147,-550.21,0.00027397,2]
[379225469,1755197448157,-1037.4,0.00027397,2]
[379225470,1755197448166,-1396.82,0.00027397,2]
[379225471,1755197448176,-3192.3,0.00027397,2]
[379225472,1755197448185,-1050.07,0.00027397,2]
[379225473,1755197448195,-1476.5,0.00027397,2]
[379225474,1755197448204,-300.0,0.00027397,2]
[379225475,1755197448214,-902.38,0.00027397,2]
[379225476,1755197448223,-400.0,0.00027397,2]
[379225477,1755197448233,-400.0,0.00027397,2]
[379225478,1755197448242,-400.0,0.00027397,2]
[379225480,1755197448252,-410.98,0.00027397,2]
[379225481,1755197448261,-1244.34,0.00027397,2]
[379225483,1755197448271,-734.42,0.00027397,2]
[379225485,1755197448281,-1882.34,0.00027397,2]
[379225487,1755197448290,-2551.39,0.00027397,2]
[379225489,1755197448300,-400.0,0.00027397,2]
[379225491,1755197448310,-400.0,0.00027397,2]
[379225493,1755197448319,-400.0,0.00027397,2]
[379225495,1755197448328,-400.0,0.00027397,2]
[379225497,1755197448338,-418.15,0.00027397,2]
[379225499,1755197448347,-2435.52,0.00027397,2]
[379225502,1755197448357,-400.0,0.00027397,2]
[379225504,1755197448367,-400.0,0.00027397,2]
[379225506,1755197448376,-400.0,0.00027397,2]
[379225508,1755197448386,-1660.41,0.00027397,2]
[379225510,1755197448397,-400.0,0.00027397,2]
[379225512,1755197448407,-1121.17,0.00027397,2]
[379225514,1755197448416,-400.0,0.00027397,2]
[379225516,1755197448425,-400.0,0.00027397,2]
[379225518,1755197448435,-400.0,0.00027397,2]
[379225519,1755197448445,-400.0,0.00027397,2]
[379225521,1755197448455,-576.69,0.00027397,2]
[379225524,1755197448466,-844.68,0.00027397,2]
[379225526,1755197448475,-400.0,0.00027397,2]
[379225527,1755197448485,-803.72,0.00027397,2]
[379225529,1755197448494,-400.0,0.00027397,2]
[379225531,1755197448503,-400.0,0.00027397,2]
[379225533,1755197448513,-400.0,0.00027397,2]
[379225535,1755197448522,-1275.11,0.00027397,2]
[379225538,1755197448533,-2882.79,0.00027397,2]
[379225540,1755197448543,-402.56876129,0.00027397,2]
[379225541,1755197448552,-1066.86,0.00027397,2]
[379225543,1755197448561,-400.0,0.00027397,2]
[379225560,1755197448713,-591.61,0.00027397,2]
[379225562,1755197448724,-1201.5,0.00027397,2]
[379225564,1755197448734,-400.0,0.00027397,2]
[379225566,1755197448743,-400.0,0.00027397,2]
[379225567,1755197448754,-400.0,0.00027397,2]
[379225569,1755197448764,-430.79,0.00027397,2]
[379225571,1755197448773,-401.98615503,0.00027397,2]
[379225573,1755197448785,-2865.25,0.00027397,2]
[379225575,1755197448795,-707.97,0.00027397,2]
[379225577,1755197448805,-400.0,0.00027397,2]
[379225579,1755197448815,-1439.74,0.00027397,2]
[379225581,1755197448825,-400.0,0.00027397,2]
[379225583,1755197448836,-894.36,0.00027397,2]
[379225585,1755197448845,-1380.39,0.00027397,2]
[379225587,1755197448855,-2312.65,0.00027397,2]
[379225589,1755197448864,-628.18,0.00027397,2]
[379225591,1755197448873,-1575.75,0.00027397,2]
[379225593,1755197448883,-400.0,0.00027397,2]
[379225595,1755197448892,-400.0,0.00027397,2]
[379225597,1755197448903,-400.0,0.00027397,2]
[379225599,1755197448912,-756.22,0.00027397,2]
[379225601,1755197448922,-958.89,0.00027397,2]
[379225603,1755197448931,-400.0,0.00027397,2]
[379225605,1755197448940,-1643.18,0.00027397,2]
[379225607,1755197448950,-1621.17,0.00027397,2]
[379225609,1755197448960,-1467.77,0.00027397,2]
[379225611,1755197448970,-1516.95,0.00027397,2]
[379225613,1755197448980,-2457.63,0.00027397,2]
[379225615,1755197448990,-1890.18,0.00027397,2]
[379225617,1755197448999,-400.0,0.00027397,2]
[379225619,1755197449009,-393.23059106,0.00027397,2]
[379225621,1755197449018,-400.0,0.00027397,2]
[379225623,1755197449028,-554.38,0.00027397,2]
[379225625,1755197449039,-400.0,0.00027397,2]
[379225627,1755197449049,-400.0,0.00027397,2]
[379225629,1755197449058,-509.53216926,0.00027397,2]
[379225631,1755197449067,-506.08,0.00027397,2]
[379225633,1755197449077,-400.0,0.00027397,2]
[379225635,1755197449087,-1471.86,0.00027397,2]
[379225637,1755197449096,-500.0,0.00027397,2]
[379225639,1755197449106,-500.0,0.00027397,2]
[379225641,1755197449116,-1471.86,0.00027397,2]
[379225643,1755197449126,-500.0,0.00027397,2]
[379225645,1755197449135,-1471.86,0.00027397,2]
[379225647,1755197449145,-1225.66,0.00027397,2]
[379225649,1755197449154,-400.0,0.00027397,2]
[379225651,1755197449163,-500.0,0.00027397,2]
[379225653,1755197449173,-1471.86,0.00027397,2]
[379225655,1755197449182,-883.77,0.00027397,2]
[379225657,1755197449192,-500.0,0.00027397,2]
[379225659,1755197449202,-1471.86,0.00027397,2]
[379225661,1755197449212,-500.0,0.00027397,2]
[379225663,1755197449221,-1471.86,0.00027397,2]
[379225665,1755197449230,-500.0,0.00027397,2]
[379225667,1755197449240,-1471.86,0.00027397,2]
[379225669,1755197449250,-500.0,0.00027397,2]
[379225671,1755197449260,-1471.86,0.00027397,2]
[379225673,1755197449270,-500.0,0.00027397,2]
[379225675,1755197449279,-500.0,0.00027397,2]
[379225677,1755197449288,-1471.86,0.00027397,2]
[379225679,1755197449298,-500.0,0.00027397,2]
[379225681,1755197449307,-1471.86,0.00027397,2]
[379225683,1755197449317,-1471.86,0.00027397,2]
[379225685,1755197449327,-1471.86,0.00027397,2]
[379225687,1755197449336,-1471.86,0.00027397,2]
[379225689,1755197449346,-1471.86,0.00027397,2]
[379225691,1755197449357,-500.0,0.00027397,2]
[379225693,1755197449366,-400.0,0.00027397,2]
[379225695,1755197449375,-583.19,0.00027397,2]
[379225697,1755197449385,-400.0,0.00027397,2]
[379225699,1755197449394,-380.84188387,0.00027397,2]
[379225701,1755197449404,-613.25494668,0.00027397,2]
[379225703,1755197449414,-2388.53,0.00027397,2]
[379225705,1755197449423,-583.19,0.00027397,2]
[379225707,1755197449433,-1471.86,0.00027397,2]
[379225709,1755197449442,-583.19,0.00027397,2]
[379225711,1755197449452,-1471.86,0.00027397,2]
[379225713,1755197449461,-583.19,0.00027397,2]
[379225715,1755197449470,-1471.86,0.00027397,2]
[379225717,1755197449479,-583.19,0.00027397,2]
[379225719,1755197449489,-1471.86,0.00027397,2]
[379225721,1755197449498,-583.19,0.00027397,2]
[379225723,1755197449507,-492.63,0.00027397,2]
[379225725,1755197449517,-1471.86,0.00027397,2]
[379225727,1755197449526,-583.19,0.00027397,2]
[379225729,1755197449539,-603.809093,0.00027397,7]
[379225731,1755197449548,-1471.86,0.00027397,2]
[379225733,1755197449557,-583.19,0.00027397,2]
[379225735,1755197449567,-583.19,0.00027397,2]
[379225737,1755197449577,-1471.86,0.00027397,2]
[379225739,1755197449589,-1471.86,0.00027397,2]
[379225741,1755197449598,-603.809093,0.00027397,7]
[379225743,1755197449608,-1471.86,0.00027397,2]
[379225745,1755197449617,-1472.0136933,0.00027397,2]
[379225747,1755197449626,-433.7,0.00027397,2]
[379225749,1755197449635,-603.809093,0.00027397,7]
[379225750,1755197449645,-587.78,0.00027397,2]
[379225753,1755197449655,-2020.905764,0.00027397,7]
[379225754,1755197449665,-400.0,0.00027397,2]
[379225756,1755197449674,-2020.905764,0.00027397,7]
[379225758,1755197449684,-603.809093,0.00027397,7]
[379225760,1755197449693,-400.0,0.00027397,2]
[379225762,1755197449702,-406.52007179,0.00027397,2]
[379225764,1755197449712,-2020.905764,0.00027397,7]
[379225766,1755197449721,-400.0,0.00027397,2]
[379225768,1755197449730,-2020.905764,0.00027397,7]
[379225770,1755197449740,-955.53,0.00027397,2]
[379225772,1755197449749,-400.0,0.00027397,2]
[379225774,1755197449758,-714.51,0.00027397,2]
[379225776,1755197449767,-1087.15,0.00027397,2]
[379225778,1755197449777,-451.79,0.00027397,2]
[379225780,1755197449787,-400.0,0.00027397,2]
[379225782,1755197449797,-400.0,0.00027397,2]
[379225784,1755197449807,-400.0,0.00027397,2]
[379225786,1755197449816,-400.0,0.00027397,2]
[379225789,1755197449826,-904.21,0.00027397,2]
[379225790,1755197449835,-758.75,0.00027397,2]
[379225792,1755197449844,-400.0,0.00027397,2]
[379225794,1755197449853,-1493.08,0.00027397,2]
[379225796,1755197449863,-400.0,0.00027397,2]
[379225798,1755197449872,-1714.44,0.00027397,2]
[379225800,1755197449881,-400.0,0.00027397,2]
[379225802,1755197449890,-2030.96,0.00027397,2]
[379225804,1755197449900,-400.0,0.00027397,2]
[379225806,1755197449909,-1648.31,0.00027397,2]
[379225808,1755197449918,-911.38,0.00027397,2]
[379225810,1755197449927,-400.0,0.00027397,2]
[379225812,1755197449936,-711.16,0.00027397,2]
[379225814,1755197449945,-400.0,0.00027397,2]
[379225816,1755197449954,-428.8,0.00027397,2]
[379225818,1755197449963,-400.0,0.00027397,2]
[379225820,1755197449972,-400.0,0.00027397,2]
[379225822,1755197449981,-400.0,0.00027397,2]
[379225824,1755197449990,-400.0,0.00027397,2]
[379225826,1755197449999,-400.0,0.00027397,2]
[379225828,1755197450010,-400.0,0.00027397,2]
[379225830,1755197450019,-400.0,0.00027397,2]
[379225832,1755197450028,-400.0,0.00027397,2]
[379225834,1755197450039,-3350.95,0.00027397,2]
[379225836,1755197450049,-400.0,0.00027397,2]
[379225838,1755197450059,-400.0,0.00027397,2]
[379225840,1755197450069,-501.43678025,0.00027397,2]
[379225842,1755197450078,-400.0,0.00027397,2]
[379225844,1755197450087,-538.26642671,0.00027397,2]
[379225846,1755197450097,-498.72,0.00027397,2]
[379225848,1755197450106,-500.0,0.00027397,2]
[379225850,1755197450116,-1941.46,0.00027397,2]
[379225853,1755197450125,-400.0,0.00027397,2]
[379225855,1755197450135,-553.8,0.00027397,2]
[379225856,1755197450144,-801.44,0.00027397,2]
[379225858,1755197450154,-400.0,0.00027397,2]
[379225861,1755197450163,-1917.74,0.00027397,2]
[379225863,1755197450173,-857.65,0.00027397,2]
[379225865,1755197450182,-400.0,0.00027397,2]
[379225867,1755197450192,-1092.2,0.00027397,2]
[379225868,1755197450201,-400.0,0.00027397,2]
[379225871,1755197450211,-402.31,0.00027397,2]
[379225872,1755197450220,-401.28460557,0.00027397,2]
[379225874,1755197450230,-400.0,0.00027397,2]
[379225876,1755197450240,-970.81,0.00027397,2]
[379225879,1755197450250,-5000.0,0.00027397,2]
[379225880,1755197450260,-500.0,0.00027397,2]
[379225883,1755197450271,-500.0,0.00027397,2]
[379225885,1755197450283,-500.0,0.00027397,2]
[379225886,1755197450295,-400.0,0.00027397,2]
[379225888,1755197450304,-500.0,0.00027397,2]
[379225891,1755197450314,-500.0,0.00027397,2]
[379225892,1755197450324,-500.0,0.00027397,2]
[379225894,1755197450334,-500.0,0.00027397,2]
[379225897,1755197450345,-500.0,0.00027397,2]
[379225899,1755197450354,-400.0,0.00027397,2]
[379225901,1755197450364,-500.0,0.00027397,2]
[379225903,1755197450373,-400.0,0.00027397,2]
[379225905,1755197450383,-389.45197762,0.00027397,2]
[379225907,1755197450392,-1637.91,0.00027397,2]
[379225909,1755197450402,-2288.33,0.00027397,2]
[379225911,1755197450412,-507.07,0.00027397,2]
[379225913,1755197450421,-414.7,0.00027397,2]
[379225915,1755197450430,-507.07,0.00027397,2]
[379225917,1755197450440,-507.07,0.00027397,2]
[379225919,1755197450450,-507.07,0.00027397,2]
[379225921,1755197450460,-507.07,0.00027397,2]
[379225923,1755197450469,-507.07,0.00027397,2]
[379225925,1755197450478,-759.03,0.00027397,2]
[379225927,1755197450488,-400.0,0.00027397,2]
[379225929,1755197450497,-507.07,0.00027397,2]
[379225931,1755197450507,-507.07,0.00027397,2]
[379225933,1755197450516,-507.07,0.00027397,2]
[379225935,1755197450526,-400.0,0.00027397,2]
[379225936,1755197450538,-948.47,0.00027397,2]
[379225938,1755197450548,-609.75,0.00027397,2]
[379225941,1755197450557,-438.92,0.00027397,2]
[379225943,1755197450567,-400.0,0.00027397,2]
[379225945,1755197450577,-400.0,0.00027397,2]
[379225947,1755197450587,-2343.98,0.00027397,2]
[379225949,1755197450597,-400.0,0.00027397,2]
[379225951,1755197450606,-1706.35,0.00027397,2]
[379225953,1755197450616,-1544.6,0.00027397,2]
[379225955,1755197450625,-1254.59,0.00027397,2]
[379225957,1755197450634,-410.9,0.00027397,2]
[379225959,1755197450644,-400.0,0.00027397,2]
[379225960,1755197450653,-400.0,0.00027397,2]
[379225961,1755197450663,-400.0,0.00027397,2]
[379225962,1755197450672,-400.0,0.00027397,2]
[379225963,1755197450681,-166.548242,0.00027397,2]
[379225965,1755197450691,-400.0,0.00027397,2]
[379225967,1755197450702,-400.0,0.00027397,2]
[379225969,1755197450711,-400.0,0.00027397,2]
[379225971,1755197450720,-1012.56,0.00027397,2]
[379225973,1755197450729,-400.0,0.00027397,2]
[379225975,1755197450738,-400.0,0.00027397,2]
[379225977,1755197450747,-500.0,0.00027397,2]
[379225979,1755197450756,-400.0,0.00027397,2]
[379225981,1755197450766,-500.0,0.00027397,2]
[379225983,1755197450775,-406.72,0.00027397,2]
[379225986,1755197450787,-500.0,0.00027397,2]
[379225988,1755197450796,-500.0,0.00027397,2]
[379225990,1755197450806,-400.0,0.00027397,2]
[379225992,1755197450815,-1108.25,0.00027397,2]
[379225994,1755197450824,-500.0,0.00027397,2]
[379225996,1755197450834,-500.0,0.00027397,2]
[379225998,1755197450843,-500.0,0.00027397,2]
[379226000,1755197450852,-500.0,0.00027397,2]
[379226002,1755197450861,-500.0,0.00027397,2]